{"text_format":"1","workbook":"xlsx","n_sheets":2,"sheets":["SDI Calculator","674D"],"not_rendered":{"charts":0,"images":0,"macros":1,"external_links":0,"defined_names":25,"comments":0,"pivot_tables":0},"unopened":[],"bounds":{"document_bytes":16777216,"sheet_cells":100000,"rows_first":2000,"rows_last":500,"rows_between":2000,"halvings":0,"cell_chars":16384,"cell_head_chars":4096},"cells_cut":0,"cells_raw":0,"read":"whole","date_system":"1900"}

{"sheet":"SDI Calculator","index":0,"n_rows":64,"n_cols":27,"rows_kept":64,"cut":false,"hidden":false,"merged":[[47,13,48,14],[0,1,0,13],[12,1,14,2],[22,1,24,1],[35,1,35,13],[23,7,24,13],[28,1,33,13],[2,2,2,4]]}
[null,"SDI Supplementation Calculator"]
[]
[null,"Employee Name:"]
[null,null,null,null,null,null,null,{"$f":"IF(FirstWeekday=1,PayPeriodBegin,\"\")","v":"2023-01-01"},{"$f":"IF(FirstWeekday=2,PayPeriodBegin,IF(H4=\"\",\"\",H4+1))","v":"2023-01-02"},{"$f":"IF(FirstWeekday=3,PayPeriodBegin,IF(I4=\"\",\"\",I4+1))","v":"2023-01-03"},{"$f":"IF(FirstWeekday=4,PayPeriodBegin,IF(J4=\"\",\"\",J4+1))","v":"2023-01-04"},{"$f":"IF(FirstWeekday=5,PayPeriodBegin,IF(K4=\"\",\"\",K4+1))","v":"2023-01-05"},{"$f":"IF(FirstWeekday=6,PayPeriodBegin,IF(L4=\"\",\"\",L4+1))","v":"2023-01-06"},{"$f":"IF(FirstWeekday=7,PayPeriodBegin,IF(M4=\"\",\"\",M4+1))","v":"2023-01-07"}]
[null,"Pay Period:","January",null,2023,null,null,{"$f":"IF(H4=\"\",\"\",IF(Draw_SDI=FALSE,\"\",IF(AND(H4>=SDI_Begin,H4<=SDI_End),\"SDI\",\"\")))","v":""},"","","","","",""]
[null,null,null,null,"yyyy",null,null,{"$f":"N4+1","v":"2023-01-08"},{"$f":"H6+1","v":"2023-01-09"},{"$f":"I6+1","v":"2023-01-10"},"2023-01-11","2023-01-12","2023-01-13","2023-01-14"]
[null,null,null,null,null,null,null,{"$f":"IF(H6=\"\",\"\",IF(Draw_SDI=FALSE,\"\",IF(AND(H6>=SDI_Begin,H6<=SDI_End),\"SDI\",\"\")))","v":""},"","","","","",""]
[null,"SDI dates:",null,"to",null,null,null,{"$f":"N6+1","v":"2023-01-15"},{"$f":"H8+1","v":"2023-01-16"},{"$f":"I8+1","v":"2023-01-17"},"2023-01-18","2023-01-19","2023-01-20","2023-01-21"]
[null,null,"m/d/yyyy",null,"m/d/yyyy",null,null,{"$f":"IF(H8=\"\",\"\",IF(Draw_SDI=FALSE,\"\",IF(AND(H8>=SDI_Begin,H8<=SDI_End),\"SDI\",\"\")))","v":""},"","","","","",""]
[null,null,null,null,null,null,null,{"$f":"N8+1","v":"2023-01-22"},{"$f":"H10+1","v":"2023-01-23"},{"$f":"I10+1","v":"2023-01-24"},"2023-01-25","2023-01-26","2023-01-27",{"$f":"M10+1","v":"2023-01-28"}]
[null,"Weekly SDI benefit: ",null,null,null,null,null,{"$f":"IF(H10=\"\",\"\",IF(Draw_SDI=FALSE,\"\",IF(AND(H10>=SDI_Begin,H10<=SDI_End),\"SDI\",\"\")))","v":""},"","","","","",""]
[null,null,null,null,null,null,null,{"$f":"IF(OR(N10=\"\",N10>=PayPeriodEnd),\"\",N10+1)","v":"2023-01-29"},{"$f":"IF(OR(H12=\"\",H12>=PayPeriodEnd),\"\",H12+1)","v":"2023-01-30"},"2023-01-31","","","",""]
[null,"Monthly based on \nsalary for Supplementation Pay:",null,null,null,null,null,{"$f":"IF(H12=\"\",\"\",IF(Draw_SDI=FALSE,\"\",IF(AND(H12>=SDI_Begin,H12<=SDI_End),\"SDI\",\"\")))","v":""},"","","","","",""]
[null,null,null,null,null,null,null,{"$f":"IF(OR(N12=\"\",N12>=PayPeriodEnd),\"\",N12+1)","v":""},{"$f":"IF(OR(H14=\"\",H14>=PayPeriodEnd),\"\",H14+1)","v":""},"","","","",""]
[null,null,null,null,null,null,null,{"$f":"IF(H14=\"\",\"\",IF(Draw_SDI=FALSE,\"\",IF(AND(H14>=SDI_Begin,H14<=SDI_End),\"SDI\",\"\")))","v":""},"","","","","",""]
[]
[null,"Timebase:",null,null,"Fulltime"]
[null,null,null,null,null,null,null,null,null,null,null,null,null,null,null,"Show Note"]
[null,"Working while on SDI",null,null,null,null,null,"Possible supplementation:",null,null,null,{"$f":"IF(Q46=FALSE,\"\",\nIF(OR(Salaries_UndreducedMonthly<=0, PossibleSupp<=0),\"0\",\nIF(PossibleSupp/Salaries_UnreducedHourly>Const_MaxSuppHrs,Const_MaxSuppHrs,\nROUND(PossibleSupp/Salaries_UnreducedHourly,0))))","v":""},"hours",null,null,{"$f":"IF(AND(J21=0,L21=0),TRUE, FALSE)","v":false},"Note: No supplementation - Employee exceeds gross possible during the SDI period"]
[null,null,null,null,null,null,null,null,null,null,null,null,null,null,null,{"$f":"IF(L19=40, TRUE, FALSE)","v":false},"Note: Max supplementation is 40 hours"]
[null,"Monthly based on salary for Regular Pay:",null,null,null,null,null,null,"=",{"$f":"IF(L19=\"\",\"\",INT(L19/(8*Timebase_Decimal)))","v":""},"days",{"$f":"IF(L19=\"\",\"\",ROUND(L19-(J21*8*Timebase_Decimal),2))","v":""},"hours"]
[]
[null,"Total time worked \nDURING the SDI period:",null,null,null,null,null,null,null,null,null,null,null,null,null,"Show Error"]
[null,null,null,null,null,null,null,{"$f":"IF(P19,Q19,IF(P20,Q20,\"\"))","v":""},null,null,null,null,null,null,null,{"$f":"IF(PayPeriod_Year>2030,TRUE,FALSE)","v":false},"Error: Pay period year must be before 2030"]
[null,null,"days",null,"hours",null,null,null,null,null,null,null,null,null,null,{"$f":"IF(PayPeriod_Year=\"\",FALSE,IF(PayPeriodBegin<DATE(2005,9,1), TRUE, FALSE))","v":false},"Error: Pay period must be September 2005 or later"]
[null,null,null,null,null,null,null,null,null,null,null,null,null,null,null,{"$f":"IF(SDI_Begin=\"\",FALSE,IF(OR(SDI_Begin<PayPeriodBegin, SDI_Begin>PayPeriodEnd),TRUE,FALSE))","v":false},"Error: SDI begin date must be within the pay period"]
[null,null,null,null,null,null,null,null,null,null,null,null,null,null,null,{"$f":"IF(SDI_End=\"\",FALSE,IF(OR(SDI_End<PayPeriodBegin, SDI_End>PayPeriodEnd),TRUE,FALSE))","v":false},"Error: SDI end date must be within the pay period"]
[null,null,null,null,null,null,null,null,null,null,null,null,null,null,null,{"$f":"IF(AND(AND(SDI_Begin>0, SDI_End>0), SDI_End<SDI_Begin), TRUE, FALSE)","v":false},"Error: SDI End date must be after SDI Begin date"]
[null,{"$f":"IF(P24,Q24 & CHAR(10),\"\") &\nIF(P25,Q25 & CHAR(10),\"\") &\nIF(P26,Q26 & CHAR(10),\"\") &\nIF(P27,Q27 & CHAR(10),\"\") &\nIF(P28,Q28 & CHAR(10),\"\") &\nIF(P29,Q29 & CHAR(10),\"\") &\nIF(P30,Q30 & CHAR(10),\"\") &\nIF(P31,Q31 & CHAR(10),\"\") &\nIF(P32,Q32 & CHAR(10),\"\") &\nIF(P33,Q33 & CHAR(10),\"\")","v":""},null,null,null,null,null,null,null,null,null,null,null,null,null,{"$f":"IF(AND(SDIBenefit<>\"\", OR(SDIBenefit<Y29, SDIBenefit>AA29)), TRUE, FALSE)","v":false},{"$f":"\"Error: Weekly SDI benefit must be between $\" & Y29 & \" and $\" & AA29","v":"Error: Weekly SDI benefit must be between $1 and $1620"},null,null,null,null,null,null,"Min:",1,"Max:",1620]
[null,null,null,null,null,null,null,null,null,null,null,null,null,null,null,{"$f":"IF(AND(UnreducedSalary<>\"\", OR(UnreducedSalary<Y30, UnreducedSalary>AA30)), TRUE, FALSE)","v":false},{"$f":"\"Error: Monthly salary for Supp. Pay must be between $\" & Y30 & \" and $\" & AA30","v":"Error: Monthly salary for Supp. Pay must be between $1 and $25000"},null,null,null,null,null,null,"Min:",1,"Max:",25000]
[null,null,null,null,null,null,null,null,null,null,null,null,null,null,null,{"$f":"IF(AND(ReducedSalary<>\"\", OR(ReducedSalary<Y31, ReducedSalary>AA31)), TRUE, FALSE)","v":false},{"$f":"\"Error: Monthly salary for Regular Pay must be between $\" & Y31 & \" and $\" & AA31","v":"Error: Monthly salary for Regular Pay must be between $1 and $25000"},null,null,null,null,null,null,"Min:",1,"Max:",25000]
[null,null,null,null,null,null,null,null,null,null,null,null,null,null,null,{"$f":"IF(WorkedDays>=CompensableDays, TRUE, FALSE)","v":false},"Error: Time worked - Days must be less than days possible in Pay Period"]
[null,null,null,null,null,null,null,null,null,null,null,null,null,null,null,{"$f":"IF(WorkedHours>=8, TRUE, FALSE)","v":false},"Error: Time worked - Hours must be less than 8 hours (convert total time to days/hours)"]
[]
[]
[null,"Instructions"]
[null,"Click \"Enable Editing\" and \"Enable Content\" if prompted when opening  this document.",null,null,null,null,null,null,null,null,null,null,null,null,null,null,null,null,"Pay Periods",null,null,"Timebase"]
[null,"Pay Period: Select pay period month from dropdown menu and enter four digit year.",null,null,null,null,null,null,null,null,null,null,null,null,null,"PP",{"$f":"VLOOKUP(PayPeriod,S38:T49,2,FALSE)","v":1},null,"January",1,null,"Fulltime",1]
[null,"SDI Dates: Enter SDI start and end date for selected pay period.",null,null,null,null,null,null,null,null,null,null,null,null,null,"PP beg",{"$f":"getFirstDayOfPayPeriod(PayPeriod_Number,PayPeriod_Year)","v":"2023-01-01"},null,"February",2,null,"1/2",0.5]
[null,"Weekly SDI benefit: Enter the weekly rate from EDD.",null,null,null,null,null,null,null,null,null,null,null,null,null,"PP end",{"$f":"getLastDayOfPayPeriod(PayPeriod_Number,PayPeriod_Year)","v":"2023-01-31"},null,"March",3,null,"1/4",0.25]
[null,"Supplementation Salary: Enter the monthly based on salary to be used for supplementation pay. DO NOT enter",null,null,null,null,null,null,null,null,null,null,null,null,null,"PP days",{"$f":"getCompensableDays(PayPeriod_Number,PayPeriod_Year)","v":22},null,"April",4,null,"3/4",0.75]
[null," the employee's actual salary (the program will automatically adjust the timebase).",null,null,null,null,null,null,null,null,null,null,null,null,null,"weekday",{"$f":"WEEKDAY(Q39)","v":1},null,"May",5,null,"1/5",0.2]
[null,"Timebase: Select the timebase from dropdown menu.",null,null,null,null,null,null,null,null,null,null,null,null,null,null,null,null,"June",6,null,"2/5",0.4]
[null,"Working while on SDI: Check the box if the employee worked during the SDI period.",null,null,null,null,null,null,null,null,null,null,null,null,null,"not filled out",{"$f":"IF(OR(PayPeriod=\"\", PayPeriod_Year=\"\", SDI_Begin=\"\", SDI_End=\"\", SDIBenefit=\"\", UnreducedSalary=\"\", Timebase=\"\"),TRUE, FALSE)","v":true},null,"July",7,null,"3/5",0.6]
[null,"Monthly based on salary for Regular Pay: Enter the monthly based on salary to be used for regular pay; may",null,null,null,null,null,null,null,null,null,null,null,null,null,"draw SDI",{"$f":"IF(OR(P24,P25,P26,P27,P28),FALSE, TRUE)","v":true},null,"August",8,null,"4/5",0.8]
[null," differ from supplementation salary due to PLP or VPLP. DO NOT enter the employee's actual salary (the",null,null,null,null,null,null,null,null,null,null,null,null,null,"calculate",{"$f":"IF(OR(P24,P25,P26,P27,P28,P29,P30,P31,P32,P33,Q44),FALSE,TRUE)","v":false},null,"September",9,null,"1/8",0.125]
[null," program will automatically adjust the timebase).",null,null,null,null,null,null,null,null,null,null,null,null,null,null,null,null,"October",10,null,"3/8",0.375]
[null,"Total time worked DURING the SDI period: Enter the total days and hours worked during the SDI period.",null,null,null,null,null,null,null,null,null,null,null,"v. 3/13/2023",null,"SDI Period:",null,null,"November",11,null,"5/8",0.625]
[null,null,null,null,null,null,null,null,null,null,null,null,null,null,null,"calen. days",{"$f":"(SDI_End-SDI_Begin)+1","v":1},null,"December",12,null,"7/8",0.875]
[null,null,null,null,null,null,null,null,null,null,null,null,null,null,null,"work days",{"$f":"WorkdaysBetween(SDI_Begin,SDI_End)","v":0},null,null,null,null,"7/10",0.7]
[null,null,null,null,null,null,null,null,null,null,null,null,null,null,null,null,null,null,null,null,null,"9/10",0.9]
[null,null,null,null,null,null,null,null,null,null,null,null,null,null,null,"timebase",{"$f":"IF(Timebase=0,1,VLOOKUP(Timebase,V38:W51,2,FALSE))","v":1}]
[null,null,null,null,null,null,null,null,null,null,null,null,null,null,null,"hours wkd",{"$f":"(WorkedDays*8*Timebase_Decimal)+WorkedHours","v":0}]
[null,null,null,null,null,null,null,null,null,null,null,null,null,null,null,"Max supp hrs",40,"(Constant)"]
[]
[null,null,null,null,null,null,null,null,null,null,null,null,null,null,null,"Salaries","Monthly","Weekly","Daily","Hourly"]
[null,null,null,null,null,null,null,null,null,null,null,null,null,null,null,"Unreduced",{"$f":"UnreducedSalary*Timebase_Decimal","v":0},"n/a",{"$f":"Q57/CompensableDays","v":0},{"$f":"S57/(8*Timebase_Decimal)","v":0}]
[null,null,null,null,null,null,null,null,null,null,null,null,null,null,null,"Reduced",{"$f":"IF(ReducedSalary=0,Q57,ReducedSalary*Timebase_Decimal)","v":0},"n/a",{"$f":"Q58/CompensableDays","v":0},{"$f":"S58/(8*Timebase_Decimal)","v":0}]
[null,null,null,null,null,null,null,null,null,null,null,null,null,null,null,"SDI","n/a",{"$f":"SDIBenefit","v":0},{"$f":"R59/7","v":0},{"$f":"S59/(8*Timebase_Decimal)","v":0}]
[]
[null,null,null,null,null,null,null,null,null,null,null,null,null,null,null,"Max gross during SDI",null,{"$f":"S57*Q50","v":0}]
[null,null,null,null,null,null,null,null,null,null,null,null,null,null,null,"Total SDI benefit",null,{"$f":"S59*Q49","v":0}]
[null,null,null,null,null,null,null,null,null,null,null,null,null,null,null,"Total worked while on",null,{"$f":"Q53*T58","v":0}]
[null,null,null,null,null,null,null,null,null,null,null,null,null,null,null,"Possible supp",null,{"$f":"R61-R62-R63","v":0}]

{"sheet":"674D","index":1,"n_rows":59,"n_cols":53,"rows_kept":59,"cut":false,"hidden":true,"merged":[[5,42,5,44],[5,45,5,47],[5,48,5,51],[5,52,5,54],[6,41,7,41],[6,42,7,44],[6,45,7,47],[6,48,7,51],[6,52,7,54],[7,27,7,28],[8,0,8,6],[8,8,8,23],[8,25,8,26],[8,27,8,28],[8,29,8,38],[8,42,8,44],[8,45,8,47],[8,48,8,51],[8,52,8,54],[10,0,10,6],[11,9,11,54],[12,0,12,1],[12,2,12,4],[12,5,12,6],[12,10,12,11],[12,12,12,14],[12,19,12,20],[12,21,12,22],[12,23,12,24],[12,26,12,27],[12,30,12,31],[12,39,12,40],[12,50,12,51],[13,50,13,51],[15,0,15,18],[15,20,15,38],[15,40,15,54],[16,8,16,13],[16,15,16,18],[16,20,16,25],[16,26,17,27],[16,28,16,33],[16,34,17,37],[16,38,17,38],[17,8,17,13],[17,15,17,18],[17,20,17,21],[17,22,17,23],[17,24,17,25],[17,28,17,30],[13,0,13,1],[13,2,13,4],[13,5,13,6],[13,10,13,11],[13,12,13,14],[13,19,13,20],[13,21,13,22],[17,31,17,33],[18,20,20,21],[18,22,20,23],[18,24,20,25],[18,26,20,27],[18,28,20,30],[18,31,20,33],[13,30,13,31],[13,39,13,40],[13,23,13,24],[13,26,13,27],[18,34,20,37],[18,38,20,38],[21,31,22,33],[21,34,22,37],[25,31,26,33],[25,34,26,37],[21,44,22,44],[21,38,22,38],[21,42,22,43],[25,38,26,38],[18,41,20,54],[21,45,22,47],[23,0,24,0],[23,1,24,10],[23,11,24,16],[23,20,24,21],[23,22,24,23],[23,24,24,25],[23,28,24,30],[21,26,22,27],[21,28,22,30],[20,0,21,0],[20,1,21,2],[20,3,21,3],[20,4,21,15],[21,20,22,21],[21,22,22,23],[21,24,22,25],[27,34,28,37],[27,38,28,38],[23,31,24,33],[23,34,24,37],[23,38,24,38],[25,20,26,21],[25,22,26,23],[25,24,26,25],[25,26,26,27],[25,28,26,30],[23,26,24,27],[27,20,28,21],[27,22,28,23],[27,24,28,25],[27,26,28,27],[27,28,28,30],[27,31,28,33],[33,0,36,0],[33,1,36,12],[34,20,35,25],[34,26,35,27],[34,28,35,30],[34,31,35,33],[34,34,35,38],[35,13,36,17],[29,28,29,30],[29,31,29,33],[29,34,29,37],[30,8,31,13],[30,15,31,18],[30,20,31,38],[29,8,29,13],[29,15,29,18],[29,20,29,21],[29,22,29,23],[29,24,29,25],[29,26,29,27],[36,34,38,38],[39,20,41,25],[39,26,41,27],[39,28,41,30],[39,31,41,33],[39,34,41,38],[32,20,33,25],[32,26,33,27],[32,28,33,33],[32,34,33,38],[40,1,41,2],[42,5,43,6],[42,20,43,25],[42,26,43,27],[42,28,43,30],[42,31,43,33],[42,34,43,38],[43,52,43,54],[44,20,45,25],[44,26,45,27],[44,28,45,30],[44,31,45,33],[44,34,45,38],[45,52,46,54],[46,20,47,25],[46,26,47,27],[46,28,47,30],[46,31,47,33],[46,34,47,38],[35,40,42,54],[36,20,38,25],[36,26,38,27],[36,28,38,30],[36,31,38,33],[48,8,48,13],[48,15,48,18],[48,20,48,25],[48,26,48,27],[48,28,48,30],[48,31,48,33],[48,34,48,38],[48,40,48,54],[49,8,50,13],[49,15,50,18],[49,20,50,25],[49,26,50,27],[49,28,50,30],[51,45,52,54],[49,31,50,33],[49,34,50,38],[53,1,54,2],[54,20,55,25],[54,26,55,27],[54,28,55,30],[54,31,55,33],[54,34,55,38],[54,40,55,54],[51,20,53,25],[51,26,53,27],[51,28,53,30],[51,31,53,33],[51,34,53,38],[51,40,52,44],[57,40,57,54],[56,9,56,15],[56,20,56,25],[56,26,56,27],[56,28,56,30],[56,31,56,33],[56,34,56,38],[59,28,59,30],[59,31,59,33],[59,34,59,38],[57,20,57,25],[57,26,57,27],[57,28,57,30],[57,31,57,33],[57,34,57,38],[59,40,59,54],[62,0,63,54],[64,0,65,54],[58,20,58,25],[58,26,58,27],[58,28,58,30],[58,31,58,33],[58,34,58,38],[59,20,59,25],[59,26,59,27]]}
["STATE OF CALIFORNIA - CONTROLLER'S OFFICE"]
["INDUSTRIAL/NON-INDUSTRIAL DISABILITY/STATE DISABILITY PAY/ADJUSTEMENT REQUEST",null,null,null,null,null,null,null,null,null,null,null,null,null,null,null,null,null,null,null,null,null,null,null,null,null,null,null,null,null,null,null,null,null,null,null,null,null,null,null,null,null,null,null,null,null,"DOCUMENT NUMBER _______ OF _______"]
["STD. 674D (REV. 6/2013)"]
[]
[null,null,null,null,null,null,null,null,null,null,null,null,null,null,null,null,null,"TO:  STATE CONTROLLER - PPSD / DISABILITY UNIT",null,null,null,null,null,null,null,null,null,null,null,null,null,null,null,null,null,null,null,null,null,null,null,"4.  POSITION NUMBER"]
[null,null,null,null,null,null,null,null,null,null,null,null,null,null,null,null,null,null,null,null,null,null,null,null,null,null,null,null,null,null,null,null,null,null,null,null,null,null,null,null,null,null,"AGENCY",null,null,"UNIT",null,null,"CLASS",null,null,null,"SERIAL"]
[null,null,null,null,null,null,null,null,null,null,null,null,null,null,null,null,null,null,null,null,null,null,null,null,null,null,null,null,null,null,null,null,null,null,null,null,null,null,null,null,null,"1."]
["1.  CBID",null,null,null,null,null,null,null,"2.  SOCIAL SECURITY NUMBER",null,null,null,null,null,null,null,null,null,null,null,null,null,null,null,null,"3. F.I.",null,"M.I.",null,"LAST NAME"]
[null,null,null,null,null,null,null,null,null,null,null,null,null,null,null,null,null,null,null,null,null,null,null,null,null,null,null,null,null,null,null,null,null,null,null,null,null,null,null,null,null,"2."]
[]
["5. PAY  PERIOD",null,null,null,null,null,null,null,"6. ENTER NUMBER OF HOURS AND CODE",null,null,null,null,null,null,null,null,null,null,null," - Intervening activity/working while on Disability [W=Worked; C=Industrial Disability (IDL)] or Dock during the regular period of pay (L=Dock);"]
[null,null,null,null,null,null,null,null,null,"Please complete if employee is on alternate work schedule before, during, and after Disability."]
["T",null,"MO",null,null,"YR",null,null,null,null,1,null,2,null,null,3,4,5,6,7,null,8,null,9,null,10,11,null,12,13,14,null,15,16,17,18,19,20,21,22,null,23,24,25,26,27,28,29,30,31]
[]
[]
["7.  INDUSTRIAL DISABILITY (IDL)",null,null,null,null,null,null,null,null,null,null,null,null,null,null,null,null,null,null,null,"9.  PAYMENT PER CONTROLLER",null,null,null,null,null,null,null,null,null,null,null,null,null,null,null,null,null,null,null,"11.  ADDITIONAL INFORMATION"]
["a. ","EMPLOYEE ON IDL",null,null,null,null,null,null,"FROM:",null,null,null,null,null,null,"THROUGH:",null,null,null,null,"ISSUE DATE",null,null,null,null,null,"PT",null,"TIME WORKED",null,null,null,null,null,"WARRANT OR\nA/R NUMBER",null,null,null,"RET"]
[null,null,null,null,null,null,null,null,null,null,null,null,null,null,null,null,null,null,null,null,"MO",null,"DY",null,"YR",null,null,null,"DAYS",null,null,"HOURS"]
[]
[]
["b.",null,null,null,"EMPLOYEE ENTITLED TO ENHANCED IDL"]
[]
[]
["c.","AVERAGE HOURS COMPUTED\nFOR INTERMITTENT EMPLOYEE:"]
[]
[]
[]
["8A. NON-INDUSTRIAL DISABILITY (NDI)"]
[]
["a. ","EMPLOYEE ON NDI",null,null,null,null,null,null,"FROM:",null,null,null,null,null,null,"THROUGH:"]
[null,null,null,null,null,null,null,null,null,null,null,null,null,null,null,null,null,null,null,null,"10.  PAYMENT SHOULD BE"]
[]
[null,null,null,null,null,null,null,null,null,null,null,null,null,null,null,null,null,null,null,null,null,null,null,null,null,null,null,null,"TIME WORKED"]
["b.\n\n","AVERAGE HOURS WORKED DURING\nPREVIOUS 18 MONTHS FOR\nINTERMITTENT EMPLOYEE WAS:"]
[null,null,null,null,null,null,null,null,null,null,null,null,null,null,null,null,null,null,null,null,"TYPE",null,null,null,null,null,"PT",null,"DAYS",null,null,"HOURS",null,null,"TIMEBASE FRACTION"]
[null,null,null,null,null,null,null,null,null,null,null,null,null,null,null,null,null,null,null,null,null,null,null,null,null,null,null,null,null,null,null,null,null,null,null,null,null,null,null,null,"I hereby certify that the employee named above is entitled to this pay based on the appropriate government codes and/or employee has been notified of the impending account receivable. Prior ro submitting this STD 674D, the employee was given a reasonable time to respond."]
[null,null,null,null,null,null,null,null,null,null,null,null,null,null,null,null,null,null,null,null,"REGULAR",null,null,null,null,null,0]
[]
[]
[]
[]
["c.",null,null,null,"EMPLOYEE ON ANNUAL LEAVE PROGRAM"]
[null,null,null,null,null,null,null,null,null,null,null,null,null,null,null,null,null,null,null,null,"SUPPLEMENTAL"]
[null,"ELECTED",null,null,null,null,null,"% SUPPLEMENTATION",null,null,null,null,null,null,null,null,null,null,null,null,null,null,null,null,null,null,null,null,null,null,null,null,null,null,null,null,null,null,null,null,"12.  AUTHORIZED SIGNATURE",null,null,null,null,null,null,null,null,null,null,null,"DATE SIGNED"]
[null,null,null,null,null,null,null,null,null,null,null,null,null,null,null,null,null,null,null,null,"NDI",null,null,null,null,null,"T"]
[]
["8B. STATE DISABILITY INSURANCE (SDI)",null,null,null,null,null,null,null,null,null,null,null,null,null,null,null,null,null,null,null,"IDL FULL",null,null,null,null,null,6]
[]
["a.","EMPLOYEE ON SDI",null,null,null,null,null,null,"FROM:",null,null,null,null,null,null,"THROUGH:",null,null,null,null,"IDL 2/3",null,null,null,null,null,"N"]
[null,null,null,null,null,null,null,null,null,null,null,null,null,null,null,null,null,null,null,null,"IDL / S",null,null,null,null,null,"U",null,null,null,null,null,null,null,null,null,null,null,null,null,"(PRINT OR TYPE NAME)"]
[]
[null,null,null,null,null,null,null,null,null,null,null,null,null,null,null,null,null,null,null,null,"SHIFT",null,null,null,null,null,null,null,"SHIFT\nCODE",null,null,"HOURS",null,null,"SHIFT RATE",null,null,null,null,null,"13.  CONTACT PERSON",null,null,null,null,"  (If other than authorized signature)"]
[]
[]
["b.",null,null,null,"EMPLOYEE ELECTED SUPPLEMENTATION",null,null,null,null,null,null,null,null,null,null,null,null,null,null,null,"REGULAR",null,null,null,null,null,2]
[]
["c.","SDI WEEKLY RATE: $",null,null,null,null,null,null,null,null,null,null,null,null,null,null,null,null,null,null,"IDL FULL",null,null,null,null,null,6,null,null,null,null,null,null,null,null,null,null,null,null,null,"14.  TELEPHONE NUMBER"]
[null,null,null,null,null,null,null,null,null,null,null,null,null,null,null,null,null,null,null,null,"IDL 2/3",null,null,null,null,null,"N"]
[null,null,null,null,null,null,null,null,null,null,null,null,null,null,null,null,null,null,null,null,null,null,null,null,null,null,null,null,null,null,null,null,null,null,null,null,null,null,null,null,"15. EMAIL ADDRESS"]